bitfinex/quotes_ETHUSD_20230404
["timestamp","ask_amount","ask_price","bid_price","bid_amount"]
[1680578606225,0.691,1808.6,1808.5,1.53139551]
[1680578608723,0.04980637,1808.7,1808.5,2.68857645]
[1680578609027,0.04980637,1808.7,1808.6,1.09099007]
[1680578609645,0.04980637,1808.7,1808.6,1.53332007]
[1680578610492,0.04980637,1808.7,1808.6,4.29934225]
[1680578612090,0.04980637,1808.7,1808.6,4.58669312]
[1680578612298,0.04980637,1808.7,1808.6,7.58669312]
[1680578612530,0.04980637,1808.7,1808.6,10.71726863]
[1680578612891,0.04980637,1808.7,1808.6,16.52926863]
[1680578613097,0.04980637,1808.7,1808.6,15.37208769]
[1680578613297,0.04980637,1808.7,1808.6,16.53174312]
[1680578613493,0.04980637,1808.7,1808.6,15.37208769]
[1680578621518,0.04980637,1808.7,1808.6,16.52816435]
[1680578621725,0.04980637,1808.7,1808.6,16.75816435]
[1680578622611,0.04980637,1808.7,1808.6,21.57776435]
[1680578624270,0.04980637,1808.7,1808.6,20.13128818]
[1680578632066,0.04980637,1808.7,1808.6,19.90128818]
[1680578636270,0.04980637,1808.7,1808.6,21.34776435]
[1680578637480,0.04980637,1808.7,1808.6,19.90128818]
[1680578640744,0.10675663,1809.0,1808.6,23.04689459]
[1680578640959,0.10675663,1809.0,1808.9,6.499]
[1680578641262,0.10675663,1809.0,1808.9,13.25418218]
[1680578641567,0.10675663,1809.0,1808.9,17.99272241]
[1680578642481,0.10675663,1809.0,1808.9,16.25618218]
[1680578642671,0.10675663,1809.0,1808.9,16.78628681]
[1680578642845,0.10675663,1809.0,1808.9,18.60376488]
[1680578643273,0.10675663,1809.0,1808.9,12.02759299]
[1680578643471,0.10675663,1809.0,1808.9,8.47366485]
[1680578644562,0.10675663,1809.0,1808.9,9.3416956]
[1680578644877,0.10675663,1809.0,1808.9,8.47366485]
[1680578645173,0.10675663,1809.0,1808.9,9.34169669]
[1680578645983,0.10675663,1809.0,1808.9,8.47366485]
[1680578646576,0.10675663,1809.0,1808.9,9.34142765]
[1680578647179,0.10675663,1809.0,1808.9,8.47366485]
[1680578647850,0.10675663,1809.0,1808.9,11.45924215]
[1680578649974,0.10675663,1809.0,1808.9,8.47366485]
[1680578650369,0.10675663,1809.0,1808.9,9.341157]
[1680578650567,0.10675663,1809.0,1808.9,8.47366485]
[1680578651642,0.10675663,1809.0,1808.9,9.34129416]
[1680578651878,0.10675663,1809.0,1808.9,8.18353149]
[1680578652082,0.10675663,1809.0,1808.9,9.34129416]
[1680578652375,0.10675663,1809.0,1808.9,8.18353149]
[1680578652879,0.10675663,1809.0,1808.9,9.34129416]
[1680578653049,0.10675663,1809.0,1808.9,8.47366485]
[1680578654571,0.05675663,1809.0,1808.9,8.47366485]
[1680578656983,0.05675663,1809.0,1808.9,17.49297463]
[1680578657958,0.05675663,1809.0,1808.9,11.68097463]
[1680578659890,0.05675663,1809.0,1808.9,8.18362182]
[1680578660454,0.05675663,1809.0,1808.9,9.34138449]
[1680578660669,0.05675663,1809.0,1808.9,8.47366485]
[1680578661571,0.05675663,1809.0,1808.9,5.41764306]
[1680578663371,0.05675663,1809.0,1808.9,6.57540573]
[1680578663985,0.05675663,1809.0,1808.9,5.41764306]
[1680578666118,0.05675663,1809.0,1808.9,5.70764267]
[1680578667560,0.05675663,1809.0,1808.9,6.57541086]
[1680578668402,0.05675663,1809.0,1808.9,5.70764267]
[1680578676125,0.05323574,1809.0,1808.9,5.70764267]
[1680578679420,0.05323574,1809.0,1808.9,5.99698811]
[1680578679616,0.05323574,1809.0,1808.9,8.76301029]
[1680578679923,0.05323574,1809.0,1808.9,10.09566159]
[1680578683525,0.05323574,1809.0,1808.9,8.64855348]
[1680578683687,0.05323574,1809.0,1808.9,10.09720116]
[1680578683893,0.05323574,1809.0,1808.9,10.09720292]
[1680578685530,0.05323574,1809.0,1808.9,8.64855348]
[1680578686800,0.05323574,1809.0,1808.9,5.8825313]
[1680578687131,0.05323574,1809.0,1808.9,4.54988]
[1680578687327,0.05323574,1809.0,1808.9,4.54788]
[1680578696644,0.05323574,1809.0,1808.9,6.28442023]
[1680578696810,0.05323574,1809.0,1808.9,6.28642023]
[1680578697011,0.05323574,1809.0,1808.9,8.22921474]
[1680578698553,0.05121417,1809.0,1808.9,8.22921474]
[1680578719262,0.05121417,1809.0,1808.9,10.99523692]
[1680578721571,0.04748036,1809.0,1808.9,10.99523692]
[1680578721797,0.04748036,1809.0,1808.9,15.07069669]
[1680578722160,0.04748036,1809.0,1808.9,15.75769669]
[1680578725786,0.04748036,1809.0,1808.9,17.49660549]
[1680578736496,0.04748036,1809.0,1808.9,14.86681098]
[1680578737131,0.04748036,1809.0,1808.9,9.05481098]
[1680578739792,0.04748036,1809.0,1808.9,6.2887888]
[1680578739991,0.07077393,1809.0,1808.9,4.54988]
[1680578740226,0.07077393,1809.0,1808.9,3.66337]
[1680578740396,0.07077393,1809.0,1808.9,0.66337]
[1680578743030,0.15755132,1809.0,1808.9,0.66337]
[1680578744847,0.07077393,1809.0,1808.9,2.11237633]
[1680578745135,0.04748036,1809.0,1808.9,3.66337]
[1680578746413,0.04473227,1809.0,1808.9,3.66337]
[1680578755199,0.04473227,1809.0,1808.9,5.4022788]
[1680578755369,0.04473227,1809.0,1808.9,5.4042788]
[1680578755569,0.04473227,1809.0,1808.9,9.29677935]
[1680578758792,0.04473227,1809.0,1808.9,9.84755706]
[1680578759473,0.04473227,1809.0,1808.9,15.65955706]
[1680578760001,0.04473227,1809.0,1808.9,13.92064826]
[1680578760204,0.04473227,1809.0,1808.9,14.15064826]
[1680578765409,0.04473227,1809.0,1808.9,14.84164826]
[1680578766118,0.04473227,1809.0,1808.9,16.8667149]
[1680578766728,0.04473227,1809.0,1808.9,14.84164826]
[1680578766929,0.04105108,1809.0,1808.9,14.84164826]
[1680578767736,0.04105108,1809.0,1808.9,16.8667149]
[1680578768526,0.04105108,1809.0,1808.9,17.14322086]
[1680578772064,0.04105108,1809.0,1808.9,17.83422086]
[1680578776683,5.108e-05,1809.0,1808.9,21.14622086]
[1680578777052,5.109e-05,1809.1,1808.9,20.81215422]
[1680578777250,5.109e-05,1809.1,1809.0,14.97518791]
[1680578777458,5.109e-05,1809.1,1809.0,26.77724791]
[1680578777793,5.109e-05,1809.1,1809.0,27.58333281]
[1680578777949,5.109e-05,1809.1,1809.0,40.45183877]
[1680578778351,5.109e-05,1809.1,1809.0,41.21777567]
[1680578778787,5.11e-05,1809.2,1809.0,42.59077567]
[1680578778964,5.11e-05,1809.2,1809.1,23.74215223]
[1680578779168,5.11e-05,1809.2,1809.1,24.63745223]
[1680578779375,5.11e-05,1809.2,1809.1,22.88890571]
[1680578779782,5.11e-05,1809.2,1809.1,26.48597999]
[1680578779983,5.11e-05,1809.2,1809.1,27.48597999]
[1680578782705,5.11e-05,1809.2,1809.1,25.46092751]
[1680578783563,0.08535112,1809.4,1809.1,25.46092751]
[1680578783907,0.08535112,1809.4,1809.3,9.96002218]
[1680578784101,0.08535112,1809.4,1809.3,21.37193218]
[1680578784733,0.08535112,1809.4,1809.3,26.44973218]
[1680578785415,0.08535112,1809.4,1809.3,27.89401961]
[1680578785602,0.08535112,1809.4,1809.3,27.89403695]
[1680578785802,0.08535112,1809.4,1809.3,32.06488144]
[1680578786118,0.08535112,1809.4,1809.3,30.62057667]
[1680578792162,0.08535112,1809.4,1809.3,29.92957667]
[1680578792919,0.08535112,1809.4,1809.3,33.24157667]
[1680578793136,0.08535112,1809.4,1809.3,29.92957667]
[1680578796261,1e-08,1809.5,1809.4,9.124]
[1680578796468,1e-08,1809.5,1809.4,22.19994055]
[1680578799350,1e-08,1809.5,1809.4,21.50894055]
[1680578801442,1e-08,1809.5,1809.4,56.50894055]
[1680578802169,1e-08,1809.5,1809.4,58.24262578]
[1680578803879,1e-08,1809.5,1809.4,56.50894055]
[1680578804180,1e-08,1809.5,1809.4,57.05247147]
[1680578804348,1e-08,1809.5,1809.4,58.7861567]
[1680578805076,0.002,1810.0,1809.5,0.5]
[1680578805284,0.11000001,1810.1,1809.9,10.60001149]
[1680578805444,0.11000001,1810.1,1810.0,7.35894]
[1680578805653,0.11000001,1810.1,1810.0,13.12696218]
[1680578806367,0.11000001,1810.1,1810.0,13.12996218]
[1680578807178,0.11000001,1810.1,1810.0,14.29267444]
[1680578813364,0.11000001,1810.1,1810.0,13.35996218]
[1680578816748,0.11000001,1810.1,1810.0,7.31496218]
[1680578816955,0.11000001,1810.1,1810.0,3.43099218]
[1680578817184,0.11000001,1810.1,1810.0,3.42899218]
[1680578819398,0.11000001,1810.1,1810.0,9.24399218]
[1680578819616,0.11000001,1810.1,1810.0,3.43099218]
[1680578819755,0.11000001,1810.1,1810.0,9.24399218]
[1680578819960,0.11000001,1810.1,1810.0,3.43099218]
[1680578820158,0.11000001,1810.1,1810.0,3.42899218]
[1680578821375,0.11000001,1810.1,1810.0,9.24399218]
[1680578821576,0.11000001,1810.1,1810.0,9.24599218]
[1680578822012,0.11000001,1810.1,1810.0,11.32774553]
[1680578822214,0.11000001,1810.1,1810.0,14.55774553]
[1680578824719,0.11000001,1810.1,1810.0,15.71317764]
[1680578824867,0.11000001,1810.1,1810.0,14.55774553]
[1680578825914,0.11000001,1810.1,1810.0,15.10811149]
[1680578826281,0.11000001,1810.1,1810.0,16.2635436]
[1680578827912,0.10622377,1810.1,1810.0,16.2635436]
[1680578828064,0.10622377,1810.1,1810.0,15.3969864]
[1680578828263,0.10622377,1810.1,1810.0,16.0869864]
[1680578828676,0.10622377,1810.1,1810.0,16.37584442]
[1680578829964,0.10622377,1810.1,1810.0,18.93155429]
[1680578830164,0.10622377,1810.1,1810.0,20.66470245]
[1680578830566,0.10622377,1810.1,1810.0,20.94120841]
[1680578833094,0.10622377,1810.1,1810.0,55.94120841]
[1680578839218,0.10622377,1810.1,1810.0,54.20806025]
[1680578839821,0.10622377,1810.1,1810.0,53.97806025]
[1680578841243,0.10622377,1810.1,1810.0,54.20806025]
[1680578845155,0.10622377,1810.1,1810.0,16.83948262]
[1680578845454,0.10622377,1810.1,1810.0,10.95107979]
[1680578846644,0.10622377,1810.1,1810.0,11.18107979]
[1680578848650,0.10622377,1810.1,1810.0,13.89272296]
[1680578848825,0.10622377,1810.1,1810.0,15.04744461]
[1680578849441,0.10622377,1810.1,1810.0,14.18107979]
[1680578849960,0.10255904,1810.1,1810.0,14.18107979]
[1680578850961,0.10255904,1810.1,1810.0,16.53226492]
[1680578853040,0.10255904,1810.1,1810.0,17.39888032]
[1680578853244,0.10255904,1810.1,1810.0,16.53226492]
[1680578854221,0.10255904,1810.1,1810.0,14.18107979]
[1680578857181,0.10255904,1810.1,1810.0,15.62428647]
[1680578857541,0.10255904,1810.1,1810.0,14.46956482]
[1680578858040,0.10255904,1810.1,1810.0,14.18217151]
[1680578858283,0.10255904,1810.1,1810.0,15.62537819]
[1680578859188,0.10255904,1810.1,1810.0,14.46956482]
[1680578859389,0.10255904,1810.1,1810.0,16.70527779]
[1680578859686,0.10255904,1810.1,1810.0,17.86121598]
[1680578860143,0.10255904,1810.1,1810.0,16.4180093]
[1680578860439,0.10255904,1810.1,1810.0,17.86121598]
[1680578861202,0.10255904,1810.1,1810.0,15.62550301]
[1680578861404,0.10255904,1810.1,1810.0,14.46956482]
[1680578861964,0.10255904,1810.1,1810.0,15.62568837]
[1680578863132,0.10255904,1810.1,1810.0,14.46956482]
[1680578867712,0.10255904,1810.1,1810.0,14.23956482]
[1680578868240,0.10255904,1810.1,1810.0,15.39654182]
[1680578868738,0.10255904,1810.1,1810.0,14.23956482]
[1680578869534,0.10255904,1810.1,1810.0,4.69640212]
[1680578869707,0.10255904,1810.1,1810.0,4.69440212]
[1680578869900,0.10255904,1810.1,1810.0,5.56219639]
[1680578870095,0.10255904,1810.1,1810.0,5.56419639]
[1680578870404,0.10255904,1810.1,1810.0,6.00617639]
[1680578871152,0.09903949,1810.1,1810.0,9.00617639]
[1680578873135,0.18904344,1810.1,1810.0,7.8466222]
[1680578873832,0.18904344,1810.1,1810.0,5.08060002]
[1680578874337,0.18904344,1810.1,1810.0,3.002]
[1680578874543,0.18904344,1810.1,1809.9,4.09079427]
[1680578874699,0.18904344,1810.1,1810.0,0.22099]
[1680578876712,0.87604344,1810.1,1809.9,0.86979427]
[1680578876908,0.99610449,1809.9,1809.7,0.86979427]
[1680578877109,1.373,1809.8,1809.6,1.08883427]
[1680578877340,0.691,1809.7,1809.6,1.08883427]
[1680578877538,0.691,1809.7,1809.6,1.53091427]
[1680578879220,0.691,1809.7,1809.6,0.66312]
[1680578879627,0.691,1809.7,1809.6,1.53091427]
[1680578881050,0.691,1809.7,1809.6,0.66312]
[1680578881569,0.691,1809.7,1809.6,1.53091427]
[1680578881755,0.691,1809.7,1809.6,4.53091427]
[1680578882067,0.689,1809.8,1809.6,4.53091427]
[1680578882927,0.689,1809.8,1809.6,3.66312]
[1680578883129,0.689,1809.8,1809.6,0.66312]
[1680578885829,0.689,1809.8,1809.6,4.29693645]
[1680578887038,0.684,1809.9,1809.7,8.58102218]
[1680578887237,0.684,1809.9,1809.8,0.66304]
[1680578887238,0.0057548,1809.9,1809.8,0.66304]
[1680578887473,0.78303949,1810.1,1809.8,3.42906218]
[1680578887688,0.78879429,1810.1,1809.8,5.01868262]
[1680578887985,0.78879429,1810.1,1809.8,5.02068262]
[1680578888683,0.78303949,1810.1,1809.8,5.02068262]
[1680578889660,1.77914398,1810.1,1809.8,5.02068262]
[1680578889838,1.78489878,1810.1,1809.8,5.02068262]
[1680578890046,1.78489878,1810.1,1809.8,3.43106218]
[1680578890242,1.78489878,1810.1,1809.8,3.42906218]
[1680578891244,1.78489878,1810.1,1809.8,2.98703218]
[1680578892460,1.10089878,1810.1,1809.8,2.98703218]
[1680578892675,1.09514398,1810.1,1809.8,2.98703218]
[1680578892881,1.28533386,1810.1,1809.8,2.98703218]
[1680578893047,1.29108866,1810.1,1809.8,2.98703218]
[1680578894255,1.29108866,1810.1,1809.9,2.76602218]
[1680578894460,1.29108866,1810.1,1809.9,2.98702218]
[1680578895383,1.29108866,1810.1,1809.9,2.76602218]
[1680578895549,1.29108866,1810.1,1809.9,2.98702218]
[1680578895748,1.28277084,1810.1,1809.9,2.76602218]
[1680578897585,1.09258096,1810.1,1809.9,2.76602218]
[1680578897794,1.09258096,1810.1,1809.9,2.98702218]
[1680578898476,1.09258096,1810.1,1809.9,2.76602218]
[1680578898677,1.09258096,1810.1,1809.9,2.98702218]
[1680578899267,0.09647647,1810.1,1809.9,2.98702218]
[1680578899848,0.09647647,1810.1,1809.9,3.77273489]
[1680578900462,0.09647647,1810.1,1809.9,3.77470976]
[1680578900785,0.09647647,1810.1,1809.9,3.33669976]
[1680578900955,0.09647647,1810.1,1809.9,3.33269976]
[1680578901356,0.09647647,1810.1,1809.9,3.33669976]
[1680578901586,0.09647647,1810.1,1809.9,3.11569976]
[1680578901791,0.09647647,1810.1,1809.9,3.11169976]
[1680578902090,0.09647647,1810.1,1809.9,3.33269976]
[1680578902292,0.09647647,1810.1,1809.9,3.11569976]
[1680578902454,0.09647647,1810.1,1809.9,2.98899705]
[1680578902654,0.09647647,1810.1,1809.9,2.98702218]
[1680578903158,0.09647647,1810.1,1809.9,2.76602218]
[1680578904687,0.09647647,1810.1,1809.9,2.98701218]
[1680578912010,0.09647647,1810.1,1809.9,2.76602218]
[1680578912531,0.09647647,1810.1,1809.9,2.98702218]
[1680578913316,0.09647647,1810.1,1809.9,2.76602218]
[1680578913511,0.09647647,1810.1,1809.9,2.98702218]
[1680578914526,0.09647647,1810.1,1809.9,2.76602218]
[1680578914678,0.09647647,1810.1,1809.9,2.98702218]
[1680578915493,0.09647647,1810.1,1809.9,2.76602218]
[1680578916442,0.09647647,1810.1,1809.9,2.98702218]
[1680578916757,0.09647647,1810.1,1809.9,2.76602218]
[1680578917138,0.09647647,1810.1,1809.9,2.98702218]
[1680578917342,0.09647647,1810.1,1809.9,3.85481645]
[1680578917548,0.09647647,1810.1,1809.9,3.63979132]
[1680578918095,0.09647647,1810.1,1809.9,3.63579132]
[1680578919146,0.09380207,1810.1,1809.9,3.63381645]
[1680578919352,0.09380207,1810.1,1809.9,0.86779427]
[1680578919499,0.18278228,1810.1,1809.8,0.86779427]
[1680578921252,0.18278228,1810.1,1809.8,2.02481825]
[1680578921415,0.18278228,1810.1,1809.8,0.86779427]
[1680578921617,0.18278228,1810.1,1809.8,2.02481825]
[1680578922034,0.87378228,1810.1,1809.8,0.86779427]
[1680578922548,0.08737823,1810.0,1809.8,0.86779427]
[1680578929060,0.08737823,1810.0,1809.7,2.24584825]
[1680578929343,0.89707585,1810.1,1809.8,0.86779427]
[1680578932146,0.691,1810.0,1809.8,0.86779427]
[1680578938128,0.20607585,1810.1,1809.8,0.86779427]
[1680578938527,0.20607585,1810.1,1809.8,1.08880427]
[1680578938740,0.20607585,1810.1,1809.8,0.86779427]
[1680578938918,0.20607585,1810.1,1809.8,1.08880427]
[1680578939247,0.20607585,1810.1,1809.8,0.86779427]
[1680578942533,0.20607585,1810.1,1809.8,1.08880427]
[1680578942731,0.11709564,1810.1,1809.8,1.08880427]
[1680578943035,0.11709564,1810.1,1809.8,0.86779427]
[1680578943437,0.11454953,1810.1,1809.8,0.86779427]
[1680578955066,0.11454953,1810.1,1809.8,0.86410401]
[1680578959209,0.33552953,1810.1,1809.8,0.86410401]
[1680578959495,0.11454953,1810.1,1809.8,0.86410401]
[1680578961261,0.33552953,1810.1,1809.8,0.86410401]
[1680578961460,0.11454953,1810.1,1809.8,0.86410401]
[1680578963002,0.33552953,1810.1,1809.8,0.86410401]
[1680578964091,0.11454953,1810.1,1809.8,0.86410401]
[1680578964470,0.11454953,1810.1,1809.8,2.02112799]
[1680578968407,0.11454953,1810.1,1809.9,0.86410401]
[1680578969869,0.11454953,1810.1,1809.8,2.02112799]
[1680578971001,0.11454953,1810.1,1809.8,0.86410401]
[1680578974615,0.11454953,1810.1,1809.9,0.86410401]
[1680578975020,0.11454953,1810.1,1809.8,0.86410401]
[1680578975617,0.11454953,1810.1,1809.8,2.02112799]
[1680578978386,0.33188873,1810.1,1809.8,2.02112799]
[1680578979408,0.33188873,1810.1,1809.9,0.86410401]
[1680578979606,0.33188873,1810.1,1809.8,2.02112799]
[1680578979929,0.11090873,1810.1,1809.8,2.02112799]
[1680578981023,0.11090873,1810.1,1809.8,0.86410401]
[1680578982003,0.33188873,1810.1,1809.8,0.86410401]
[1680578982205,0.11090873,1810.1,1809.8,0.86410401]
[1680578982404,0.33188873,1810.1,1809.8,0.86410401]
[1680578987498,0.11090873,1810.1,1809.8,0.86410401]
[1680578987700,0.08761516,1810.1,1809.9,0.86410401]
[1680578988098,0.08761516,1810.1,1809.8,1.21113496]
[1680578993537,0.30859516,1810.1,1809.8,1.21113496]
[1680578993707,0.08761516,1810.1,1809.8,1.21113496]
[1680578994298,0.08761516,1810.1,1809.8,0.86410401]
[1680578995603,0.08761516,1810.1,1809.8,2.02112799]
[1680578995802,0.08761516,1810.1,1809.8,0.86410401]
[1680579001434,0.30859516,1810.1,1809.8,0.86410401]
[1680579001631,0.08761516,1810.1,1809.8,0.86410401]
[1680579002648,0.30859516,1810.1,1809.8,0.86410401]
[1680579005559,0.08761516,1810.1,1809.8,0.86410401]
[1680579007162,0.30859516,1810.1,1809.8,0.86410401]
[1680579013941,0.39464868,1810.1,1809.8,0.86410401]
[1680579015089,0.83660868,1810.1,1809.7,0.87007888]
[1680579015964,0.83660868,1810.1,1809.7,0.86410401]
[1680579017050,6.65160868,1810.1,1809.7,0.86410401]
[1680579017386,6.501,1810.0,1809.6,0.87207888]
[1680579017633,1.31059276,1809.9,1809.5,0.87207888]
[1680579017787,0.691,1809.8,1809.5,0.86410401]
[1680579017978,0.22103,1809.7,1809.5,0.86410401]
[1680579018182,0.356438,1809.7,1809.4,2.02710286]
[1680579018381,0.356438,1809.7,1809.4,2.02310286]
[1680579018583,0.356438,1809.7,1809.3,2.02710286]
[1680579018584,0.02329357,1809.6,1809.3,2.02710286]
[1680579018784,0.02329357,1809.6,1809.4,0.86410401]
[1680579019609,0.02329357,1809.6,1809.3,2.02710286]
[1680579019904,0.02329357,1809.6,1809.4,0.86410401]
[1680579020067,0.02329357,1809.6,1809.3,2.02710286]
[1680579020250,0.02329357,1809.6,1809.4,0.86410401]
[1680579020599,0.688,1810.0,1809.5,2.76602218]
[1680579020760,0.686,1810.0,1809.5,3.85116619]
[1680579021291,0.686,1810.0,1809.5,5.00819017]
[1680579021500,0.30859516,1810.1,1809.5,8.68606619]
[1680579021714,0.30859516,1810.1,1809.6,0.86860662]
[1680579021880,0.08761516,1810.1,1809.6,1.08964662]
[1680579022283,0.22687729,1810.1,1809.6,5.16185281]
[1680579022482,0.22687729,1810.1,1809.6,4.30572367]
[1680579022803,0.22687729,1810.1,1809.7,0.43057237]
[1680579024713,0.44785729,1810.1,1809.7,0.43057237]
[1680579025608,0.44785729,1810.1,1809.7,0.42723931]
[1680579026111,0.22687729,1810.1,1809.7,3.19326149]
[1680579027299,0.44785729,1810.1,1809.7,3.19326149]
[1680579029505,0.44785729,1810.1,1809.7,2.76602218]
[1680579036983,0.88981729,1810.1,1809.7,2.76602218]
[1680579044847,0.44785729,1810.1,1809.7,2.76602218]
[1680579047618,0.44785729,1810.1,1809.6,0.86610401]
[1680579047851,0.44785729,1810.1,1809.5,7.76706799]
[1680579048023,0.44785729,1810.1,1809.6,0.86410401]
[1680579048024,0.44460998,1810.1,1809.6,0.86410401]
[1680579048231,0.44460998,1810.1,1809.6,0.87007888]
[1680579048632,0.44460998,1810.1,1809.6,1.09111888]
[1680579049057,0.44460998,1810.1,1809.6,0.87007888]
[1680579049358,0.44460998,1810.1,1809.7,0.08700789]
[1680579050564,0.44460998,1810.1,1809.6,0.87007888]
[1680579051816,0.691,1810.0,1809.6,0.00597487]
[1680579052016,0.912,1810.0,1809.6,0.00597487]
[1680579052637,1.35398,1810.0,1809.6,0.00597487]
[1680579052861,0.135398,1809.9,1809.6,0.00597487]
[1680579053021,0.356408,1809.9,1809.6,0.00597487]
[1680579062058,1.047408,1809.9,1809.6,0.00597487]
[1680579062246,1.489418,1809.9,1809.6,0.00597487]
[1680579065365,1.047408,1809.9,1809.6,0.00597487]
[1680579065731,0.1047408,1809.8,1809.6,0.00597487]
[1680579066331,0.3257508,1809.8,1809.6,0.00597487]
[1680579067771,1.4517808,1809.8,1809.5,0.00797487]
[1680579068060,1.4517808,1809.8,1809.4,0.00197487]
[1680579068264,1.4517808,1809.8,1809.3,0.87007888]
[1680579068464,0.36621808,1809.7,1809.3,0.87007888]
[1680579069669,0.36621808,1809.7,1809.3,0.00597487]
[1680579070872,0.80827808,1809.7,1809.3,0.00597487]
[1680579071951,0.80827808,1809.7,1809.2,5.66257888]
[1680579071952,0.80593398,1809.7,1809.2,5.66257888]
[1680579072977,0.80593398,1809.7,1809.2,4.79847487]
[1680579073132,0.80593398,1809.7,1809.2,4.79647487]
[1680579073133,0.0805934,1809.6,1809.2,4.79647487]
[1680579073330,0.3016434,1809.6,1809.2,4.79647487]
[1680579083073,0.7437234,1809.6,1809.2,4.79647487]
[1680579083256,0.3016434,1809.6,1809.2,4.79647487]
[1680579084243,0.02329357,1809.5,1809.2,0.00597487]
[1680579084457,1.35419,1809.4,1809.2,0.00397487]
[1680579084659,0.91206,1809.4,1809.1,0.00597487]
[1680579086980,0.691,1809.4,1809.1,0.00597487]
[1680579087342,0.91206,1809.4,1809.1,0.00597487]
[1680579087544,1.13135823,1809.4,1809.1,0.00597487]
[1680579091661,0.687,1809.1,1809.0,0.00597487]
[1680579091887,0.71029357,1809.1,1809.0,0.00597487]
[1680579092577,0.70749038,1809.1,1808.9,5.3219]
[1680579094273,0.92859038,1809.1,1808.9,5.3219]
[1680579094581,0.70749038,1809.1,1808.9,5.3219]
[1680579097283,0.0057548,1809.3,1808.9,8.30904218]
[1680579097487,15.59267936,1809.6,1809.0,0.83090422]
[1680579097663,15.81571936,1809.6,1809.1,0.2211]
[1680579097853,15.59467936,1809.6,1809.1,0.2211]
[1680579098050,0.14517936,1809.6,1809.1,0.32630042]
[1680579098258,0.13742456,1809.6,1809.1,0.76850042]
[1680579098590,0.13742456,1809.6,1809.1,3.5345226]
[1680579098753,0.13742456,1809.6,1809.1,4.2245226]
[1680579098953,29.8377548,1809.7,1809.2,2.76602218]
[1680579099260,0.0077548,1809.7,1809.3,0.27660222]
[1680579099479,0.22102,1809.8,1809.3,0.49767222]
[1680579099758,0.2267748,1809.8,1809.3,0.27660222]
[1680579102098,0.9177748,1809.8,1809.3,0.27660222]
[1680579102401,4.1705144,1810.2,1809.3,0.27660222]
[1680579102402,2.13210812,1810.6,1809.9,0.44201]
[1680579102556,0.11000001,1810.6,1810.0,0.57748022]
[1680579102756,0.11000001,1810.6,1810.1,1.63522824]
[1680579103084,0.11000001,1810.6,1810.4,6.97783]
[1680579103285,0.11000001,1810.6,1810.5,0.688]
[1680579103466,0.11000001,1810.6,1810.5,4.35079]
[1680579103665,0.11000001,1810.6,1810.5,8.28738921]
[1680579103989,0.11000001,1810.6,1810.5,9.81480687]
[1680579104161,0.11000001,1810.6,1810.5,9.81878174]
[1680579104689,0.11000001,1810.6,1810.5,5.29536408]
[1680579104991,0.11000001,1810.6,1810.5,4.1471213]
[1680579105192,0.11000001,1810.6,1810.5,4.1451213]
[1680579105897,0.11000001,1811.2,1810.5,4.1451213]
[1680579105898,3.65224955,1811.8,1811.4,1.0]
[1680579106069,0.005,1811.8,1811.7,13.27502218]
[1680579106269,0.005,1811.8,1811.7,8.0744044]
[1680579106470,0.005,1811.8,1811.6,0.22078]
[1680579106684,0.002,1811.9,1811.7,0.002]
[1680579106885,7.34888573,1812.4,1811.5,0.00597487]
[1680579107194,7.031,1812.2,1811.5,0.00597487]
[1680579107383,0.11000001,1811.7,1811.5,2.77199705]
[1680579109107,0.11000001,1811.7,1811.6,2.76602218]
[1680579109260,0.11000001,1811.7,1811.6,2.77199705]
[1680579110499,0.11000001,1811.7,1811.6,2.99278705]
[1680579112095,0.11000001,1811.7,1811.6,4.20478705]
[1680579113095,0.11000001,1811.7,1811.6,3.98399705]
[1680579113300,0.11000001,1811.7,1811.6,4.20478705]
[1680579125251,0.11000001,1811.7,1811.6,1.43876487]
[1680579125471,0.11000001,1811.7,1811.6,1.88035487]
[1680579126270,0.11000001,1811.7,1811.6,10.65164473]
[1680579126458,0.11000001,1811.7,1811.6,11.76683473]
[1680579126673,0.11000001,1811.7,1811.6,14.76683473]
[1680579126888,0.11000001,1811.7,1811.6,14.53683473]
[1680579127089,0.11000001,1811.7,1811.6,8.72183473]
[1680579128206,0.10661195,1811.7,1811.6,8.71585986]
[1680579129267,0.10661195,1811.7,1811.6,13.42405986]
[1680579129868,0.10661195,1811.7,1811.6,13.23379218]
[1680579130098,0.10661195,1811.7,1811.6,10.23379218]
[1680579132707,0.10661195,1811.7,1811.6,11.45279218]
[1680579132864,0.10661195,1811.7,1811.6,20.26779218]
[1680579133069,0.007,1812.4,1811.6,20.49779218]
[1680579133273,0.007,1812.5,1812.0,1.219]
[1680579133582,0.007,1812.5,1812.1,0.6622]
[1680579134575,0.007,1812.5,1812.1,3.42822218]
[1680579134806,0.007,1812.5,1812.2,2.76602218]
[1680579134998,0.007,1812.5,1812.2,2.98673218]
[1680579135194,0.007,1812.5,1812.2,4.64018218]
[1680579135497,0.03861674,1812.7,1812.2,5.9873004]
[1680579135840,0.03861674,1812.7,1812.2,0.002]
[1680579135841,1.26461674,1812.7,1812.2,0.002]
[1680579136124,1.26461674,1812.7,1812.2,0.22072]
[1680579136474,0.04561674,1812.7,1812.2,0.66217]
[1680579136817,0.04561674,1812.7,1812.2,2.98674218]
[1680579136971,1.11956386,1812.7,1812.2,2.98674218]
[1680579137170,1.34022386,1812.7,1812.2,2.76602218]
[1680579138278,1.34022386,1812.7,1812.1,9.54361453]
[1680579138510,1.34022386,1812.7,1812.1,12.30963671]
[1680579138709,1.34022386,1812.7,1812.1,12.53036671]
[1680579138915,0.35469239,1812.6,1812.1,12.53036671]
[1680579139073,0.36169239,1812.6,1812.1,12.53036671]
[1680579139781,0.14102239,1812.6,1812.1,3.01106671]
[1680579140020,0.14102239,1812.6,1812.1,3.00906671]
[1680579140730,0.14102239,1812.6,1812.1,3.45053671]
[1680579146118,0.14102239,1812.6,1812.2,3.97302218]
[1680579146317,0.14102239,1812.6,1812.3,0.22071]
[1680579147718,0.14102239,1812.6,1812.2,3.97302218]
[1680579147904,0.14102239,1812.6,1812.2,4.63519218]
[1680579148314,0.007,1812.6,1812.2,4.63519218]
[1680579148491,0.007,1812.6,1812.2,5.51809218]
[1680579148689,0.04561674,1812.7,1812.2,5.52009218]
[1680579148904,0.04561674,1812.7,1812.2,4.63719218]
[1680579149104,0.04561674,1812.7,1812.2,4.63519218]
[1680579149300,0.04561674,1812.7,1812.2,4.19374218]
[1680579149502,0.18471833,1812.7,1812.2,3.97302218]
[1680579149822,0.18471833,1812.7,1812.2,4.63518218]
[1680579150191,0.18471833,1812.7,1812.2,5.51808218]
[1680579150421,0.18471833,1812.7,1812.2,5.52008218]
[1680579150637,0.18471833,1812.7,1812.2,6.7639904]
[1680579151426,0.18471833,1812.7,1812.2,6.78630369]
[1680579151829,0.76032794,1812.7,1812.2,6.78630369]
[1680579152427,0.76032794,1812.7,1812.3,1.219]
[1680579152631,0.62122635,1812.7,1812.4,2.98671218]
[1680579154789,0.04561674,1812.7,1812.4,3.42811218]